{"text_format":"1","workbook":"xlsx","n_sheets":8,"sheets":["初めに","①様式1号（申請書）","②予算書","③振込先","④様式2号（実績報告書）","⑤様式3号（宿泊一覧表）","⑥宿泊証明書 ","⑦決算書"],"not_rendered":{"charts":0,"images":0,"macros":1,"external_links":0,"defined_names":8,"comments":0,"pivot_tables":0},"unopened":[],"bounds":{"document_bytes":16777216,"sheet_cells":100000,"rows_first":2000,"rows_last":500,"rows_between":2000,"halvings":0,"cell_chars":16384,"cell_head_chars":4096},"cells_cut":0,"cells_raw":0,"read":"whole","date_system":"1900"}

{"sheet":"初めに","index":0,"n_rows":33,"n_cols":3,"rows_kept":33,"cut":false,"hidden":false,"merged":[]}
[]
[null,"八代市大会等運営補助金　交付までの流れ"]
[]
["【申請者】","交付申請"]
[null,"下記の書類を大会開催7日前までに八代市スポーツ振興課へご提出ください。"]
[null,"□（様式1号）八代市大会等運営補助金交付申請書","Excelシート①"]
[null,"□大会開催要項"]
[null,"□プログラム"]
[null,"□大会収支予算書","Excelシート②"]
[null,"□振込口座の記載のある書類","Excelシート③"]
["↓"]
["【八代市】","交付決定通知"]
[null,"交付決定通知書を発送します。"]
["↓"]
["【申請者】","実績報告"]
[null,"下記の書類を大会終了後1ヶ月以内に八代市スポーツ振興課へご提出ください。"]
[null,"□（様式2号）八代市大会等運営補助金実績報告書","Excelシート④"]
[null,"□（様式3号）合宿関係者の宿泊一覧表","Excelシート⑤"]
[null,"□宿泊証明書","Excelシート⑥"]
[null,"□大会収支決算見込書","Excelシート⑦"]
[null,"□大会参加者名簿"]
[null,"□大会風景の写真1枚"]
[]
[null,"※「宿泊証明書」は、宿泊施設に記入押印いただく部分があります。"]
[null,"※大会風景の写真の撮り忘れがないようにお願いします。"]
["↓"]
["【八代市】","交付確定通知"]
[null,"交付確定通知書・請求書を発送します。"]
["↓"]
["【申請者】","請求書提出"]
[null,"請求書に押印いただき、八代市スポーツ振興課へご提出ください。"]
["↓"]
["【八代市】","補助金振込み"]

{"sheet":"①様式1号（申請書）","index":1,"n_rows":37,"n_cols":39,"rows_kept":37,"cut":false,"hidden":false,"merged":[[36,1,36,18],[36,21,36,38],[29,28,29,29],[29,30,29,31],[29,34,29,35],[29,36,29,37],[34,2,34,18],[34,22,34,38],[29,16,29,17],[29,14,29,15],[29,10,29,11],[29,8,29,9],[29,22,29,23],[29,24,29,25],[31,35,31,37],[29,2,29,3],[7,8,7,10],[7,11,7,18],[7,28,7,30],[7,31,7,38],[10,11,10,18],[10,28,10,30],[10,31,10,38],[9,14,9,15],[9,8,9,10],[9,28,9,30],[9,34,9,35],[14,8,14,10],[14,11,14,18],[14,28,14,30],[14,31,14,38],[12,8,12,10],[12,28,12,30],[12,31,12,38],[12,11,12,12],[12,14,12,18],[16,0,16,18],[16,20,16,38],[18,0,18,18],[18,20,18,38],[20,0,20,18],[20,20,20,38],[22,1,22,18],[22,21,22,38],[23,0,25,0],[23,1,24,3],[23,5,23,6],[23,8,23,9],[23,20,25,20],[23,21,24,23],[23,24,23,38],[24,4,24,18],[24,24,24,38],[25,1,25,3],[25,4,25,9],[25,10,25,12],[25,13,25,18],[25,21,25,23],[25,24,25,29],[25,30,25,32],[25,33,25,38],[26,2,26,3],[26,11,26,12],[26,22,26,23],[26,31,26,32],[29,4,29,5],[31,24,31,26],[31,28,31,31],[31,32,31,34],[31,4,31,6],[31,8,31,11],[31,12,31,14],[31,15,31,17],[31,21,31,23],[27,0,28,0],[28,2,28,18],[28,22,28,38],[32,0,35,0],[32,2,32,18],[32,20,35,20],[32,22,32,38],[33,2,33,18],[33,22,33,38],[35,2,35,18],[35,22,35,38],[27,1,27,18],[27,21,27,38],[30,1,30,18],[30,21,30,38],[31,1,31,3]]}
[]
[]
["様式第１号（第４条関係）",null,null,null,null,null,null,null,null,null,null,null,null,null,null,null,null,null,null,null,"様式第１号（第４条関係）"]
[]
[null,null,null,null,null,null,null,null,null,null,null,null,"令和",null,"年",null,"月",null,"日",null,null,null,null,null,null,null,null,null,null,null,null,null,"令和",6,"年",4,"月",1,"日"]
["（あて先）八代市長　",null,null,null,null,null,null,null,null,null,null,null,null,null,null,null,null,null,null,null,"（あて先）八代市長　"]
[]
[null,null,null,null,null,null,null,null,"申請団体名",null,null,null,null,null,null,null,null,null,null,null,null,null,null,null,null,null,null,null,"申請団体名",null,null,"○○地区○○○協会"]
[]
[null,null,null,null,null,null,null,null,"事務局住所",null,null,"〒",null,"－",null,null,null,null,null,null,null,null,null,null,null,null,null,null,"事務局住所",null,null,"〒","XXX","ー","XXXX"]
[null,null,null,null,null,null,null,null,null,null,null,null,null,null,null,null,null,null,null,null,null,null,null,null,null,null,null,null,null,null,null,"○○県○○市○○町XXX-X"]
[]
[null,null,null,null,null,null,null,null,"肩書・代表者名",null,null,null,null,null,null,null,null,null,null,null,null,null,null,null,null,null,null,null,"代表者名",null,null,"会長　○○　○○"]
[]
[null,null,null,null,null,null,null,null,"代表者連絡先",null,null,null,null,null,null,null,null,null,null,null,null,null,null,null,null,null,null,null,"代表者連絡先",null,null,"XXX-XXXX-XXXX"]
[]
["八代市大会等運営補助金交付申請書",null,null,null,null,null,null,null,null,null,null,null,null,null,null,null,null,null,null,null,"八代市大会等運営補助金交付申請書"]
[]
["　八代市大会等運営補助金の交付を受けたいので、八代市大会等運営補助金交付要領第４条の規定に基づき、下記のとおり必要書類を添えて申請します。",null,null,null,null,null,null,null,null,null,null,null,null,null,null,null,null,null,null,null,"　八代市大会等運営補助金の交付を受けたいので、八代市大会等運営補助金交付要領第４条の規定に\n　基づき、下記のとおり必要書類を添えて申請します。"]
[]
["記",null,null,null,null,null,null,null,null,null,null,null,null,null,null,null,null,null,null,null,"記"]
[]
["大会・行事\nの名称",null,null,null,null,null,null,null,null,null,null,null,null,null,null,null,null,null,null,null,"大会・行事\nの名称","第１回九州○○○選手権大会"]
["書類送付先\n及び連絡先","住　所",null,null,"〒",null,null,"－",null,null,null,null,null,null,null,null,null,null,null,null,"書類送付先\n及び連絡先","住　所",null,null,"〒XXX-XXXX"]
[null,null,null,null,null,null,null,null,null,null,null,null,null,null,null,null,null,null,null,null,null,null,null,null,"○○県○○市○○町XXX-X"]
[null,"担　当",null,null,null,null,null,null,null,null,"電話番号",null,null,null,null,null,null,null,null,null,null,"担　当",null,null,"○○　○○",null,null,null,null,null,"電話番号",null,null,"XXX-XXXX-XXXX"]
["開催期日",null,"令和",null,null,"年",null,"月",28,"日","～","令和",null,null,"年",null,"月",28,"日",null,"開催期日",null,"令和",null,6,"年",10,"月",2,"日","～","令和",null,6,"年",10,"月",3,"日"]
["開催場所",null,null,null,null,null,null,null,null,null,null,null,null,null,null,null,null,null,null,null,"開催場所","市民球場・球磨川河川緑地"]
[null,null,"大会会場の予約・確保を完了しています。",null,null,null,null,null,null,null,null,null,null,null,null,null,null,null,null,null,null,null,"大会会場の予約・確保を完了しています。"]
["参加者数\n（見込み）",null,"県内",null,null,null,"人",null,"県外",null,null,null,"人",null,"合計",null,{"$f":"E30+K30","v":0},null,"人",null,"参加者数\n（見込み）",null,"県内",null,150,null,"人",null,"県外",null,100,null,"人",null,"合計",null,300,null,"人"]
["宿泊地",null,null,null,null,null,null,null,null,null,null,null,null,null,null,null,null,null,null,null,"宿泊地","○○ホテル・○○旅館"]
["宿泊者数\n（見込み）","実人数",null,null,null,null,null,"人","延べ宿泊者数",null,null,null,null,null,null,"人（泊）",null,null,null,null,"宿泊者数\n（見込み）","実人数",null,null,100,null,null,"人","延べ宿泊者数",null,null,null,200,null,null,"人（泊）"]
["添付書類",null,"大会開催要項",null,null,null,null,null,null,null,null,null,null,null,null,null,null,null,null,null,"添付書類",null,"大会開催要項"]
[null,null,"本補助金を計上した大会収支予算書（Excelシート②予算書）",null,null,null,null,null,null,null,null,null,null,null,null,null,null,null,null,null,null,null,"本補助金を計上した大会収支予算書"]
[null,null,"プログラム",null,null,null,null,null,null,null,null,null,null,null,null,null,null,null,null,null,null,null,"プログラム"]
[null,null,"振込口座の記載のある書類等（Excelシート③振込先）",null,null,null,null,null,null,null,null,null,null,null,null,null,null,null,null,null,null,null,"振込口座の記載のある書類等"]
["備考",null,null,null,null,null,null,null,null,null,null,null,null,null,null,null,null,null,null,null,"備考"]

{"sheet":"②予算書","index":2,"n_rows":20,"n_cols":16,"rows_kept":20,"cut":false,"hidden":false,"merged":[[1,1,1,6],[1,10,1,15],[2,2,2,6],[2,11,2,15],[3,2,3,6],[3,11,3,15],[5,1,5,5],[5,10,5,14],[6,1,6,5],[6,10,6,14],[7,1,7,5],[7,10,7,14],[8,1,8,5],[8,10,8,14],[9,1,9,5],[9,10,9,14],[10,1,10,5],[10,10,10,14],[13,1,13,5],[13,10,13,14],[14,1,14,5],[14,10,14,14],[15,1,15,5],[15,10,15,14],[19,1,19,5],[19,10,19,14],[16,1,16,5],[16,10,16,14],[17,1,17,5],[17,10,17,14],[18,1,18,5],[18,10,18,14]]}
[]
[null,"大会予算書",null,null,null,null,null,null,null,null,"大会予算書"]
[null,"合宿名：",{"$f":"IF('①様式1号（申請書）'!B23=\"\",\"\",'①様式1号（申請書）'!B23)","v":""},null,null,null,null,null,null,null,"大会名：","第１回九州○○○選手権大会"]
[null,"団体名：",{"$f":"IF('①様式1号（申請書）'!L8=\"\",\"\",'①様式1号（申請書）'!L8)","v":""},null,null,null,null,null,null,null,"団体名：","○○地区○○○協会"]
[null,"【収入】",null,null,null,null,"（単位：円）",null,null,null,"【収入】",null,null,null,null,"（単位：円）"]
[null,"項目",null,null,null,null,"金額",null,null,null,"項目",null,null,null,null,"金額"]
[null,"八代市大会等運営補助金",null,null,null,null,null,null,null,null,"八代市大会等運営補助金",null,null,null,null,120000]
[null,null,null,null,null,null,null,null,null,null,"参加費",null,null,null,null,50000]
[]
[]
[null,"収入合計",null,null,null,null,{"$f":"SUM(G7:G10)","v":0},null,null,null,"収入合計",null,null,null,null,{"$f":"SUM(P7:P10)","v":170000}]
[]
[null,"【支出】",null,null,null,null,"（単位：円）",null,null,null,"【支出】",null,null,null,null,"（単位：円）"]
[null,"項目",null,null,null,null,"金額",null,null,null,"項目",null,null,null,null,"金額"]
[null,null,null,null,null,null,null,null,null,null,"宿泊費",null,null,null,null,100000]
[null,null,null,null,null,null,null,null,null,null,"会場使用料",null,null,null,null,50000]
[null,null,null,null,null,null,null,null,null,null,"弁当代",null,null,null,null,20000]
[]
[]
[null,"支出合計",null,null,null,null,{"$f":"SUM(G15:G19)","v":0},null,null,null,"支出合計",null,null,null,null,{"$f":"SUM(P15:P19)","v":170000}]

{"sheet":"③振込先","index":3,"n_rows":20,"n_cols":6,"rows_kept":20,"cut":false,"hidden":false,"merged":[[12,1,13,1],[12,2,13,2],[12,3,13,3],[13,5,13,6],[5,2,5,5],[6,2,6,5],[7,2,7,5],[11,5,11,6],[12,5,12,6],[12,4,13,4]]}
[]
[]
[null,"「八代市大会等運営補助金」の振込先口座"]
[]
[]
[null,"大会・行事名",{"$f":"IF('①様式1号（申請書）'!B23=\"\",\"\",'①様式1号（申請書）'!B23)","v":""}]
[null,"団体名",{"$f":"IF('①様式1号（申請書）'!L8=\"\",\"\",'①様式1号（申請書）'!L8)","v":""}]
[null,"代表者名",{"$f":"IF('①様式1号（申請書）'!O13=\"\",\"\",'①様式1号（申請書）'!O13)","v":""}]
[]
[null,"※申請者と同じ名義の口座をご記入ください。（代表者様名義の口座もしくはチーム名義の口座）"]
[]
[null,"金融機関名","支店名","区分","口座番号","口座名義人"]
[]
[]
[]
[null,null,null,"区分リスト"]
[null,null,null,"普通"]
[null,null,null,"当座"]
[null,null,null,"貯蓄"]
[null,null,null,"別段"]

{"sheet":"④様式2号（実績報告書）","index":4,"n_rows":37,"n_cols":41,"rows_kept":37,"cut":false,"hidden":false,"merged":[[36,1,36,18],[36,21,36,38],[28,36,28,37],[28,22,28,23],[28,24,28,25],[28,28,28,29],[28,30,28,31],[28,34,28,35],[28,8,28,9],[28,4,28,5],[28,2,28,3],[30,15,30,17],[30,21,30,23],[28,16,28,17],[28,14,28,15],[28,10,28,11],[7,8,7,10],[7,11,7,18],[7,28,7,30],[7,31,7,38],[9,8,9,10],[9,28,9,30],[9,31,9,38],[9,14,9,15],[14,8,14,10],[14,11,14,18],[14,28,14,30],[14,31,14,38],[12,31,12,38],[12,11,12,12],[12,14,12,18],[16,0,16,18],[16,20,16,38],[18,0,18,18],[18,20,18,38],[20,0,20,18],[20,20,20,38],[22,1,22,18],[22,21,22,38],[23,0,25,0],[23,1,24,3],[23,5,23,6],[23,8,23,9],[23,20,25,20],[23,21,24,23],[23,24,23,38],[24,4,24,18],[24,24,24,38],[25,1,25,3],[25,4,25,9],[25,10,25,12],[25,13,25,18],[25,21,25,23],[25,33,25,38],[26,2,26,3],[26,11,26,12],[26,22,26,23],[26,31,26,32],[25,24,25,29],[25,30,25,32],[31,0,35,0],[31,2,31,18],[31,20,35,20],[31,22,31,38],[32,2,32,18],[32,22,32,38],[33,2,33,18],[33,22,33,38],[34,2,34,18],[34,22,34,38],[35,2,35,18],[35,22,35,38],[10,11,10,18],[12,8,12,10],[10,31,10,38],[12,28,12,30],[30,24,30,26],[30,28,30,31],[30,32,30,34],[30,35,30,37],[27,1,27,18],[27,21,27,38],[29,1,29,18],[29,21,29,38],[30,1,30,3],[30,4,30,6],[30,8,30,11],[30,12,30,14]]}
[]
[]
["様式第２号（第６条関係）",null,null,null,null,null,null,null,null,null,null,null,null,null,null,null,null,null,null,null,"様式第２号（第６条関係）"]
[]
[null,null,null,null,null,null,null,null,null,null,null,null,"令和",null,"年",null,"月",null,"日",null,null,null,null,null,null,null,null,null,null,null,null,null,"令和",6,"年",10,"月",20,"日"]
["（あて先）八代市長　",null,null,null,null,null,null,null,null,null,null,null,null,null,null,null,null,null,null,null,"（あて先）八代市長　"]
[]
[null,null,null,null,null,null,null,null,"申請団体名",null,null,{"$f":"IF('①様式1号（申請書）'!L8=\"\",\"\",'①様式1号（申請書）'!L8)","v":""},null,null,null,null,null,null,null,null,null,null,null,null,null,null,null,null,"申請団体名",null,null,"○○地区○○○協会"]
[]
[null,null,null,null,null,null,null,null,"事務局住所",null,null,"〒",{"$f":"IF('①様式1号（申請書）'!M10=\"\",\"\",'①様式1号（申請書）'!M10)","v":""},"－",{"$f":"IF('①様式1号（申請書）'!O10=\"\",\"\",'①様式1号（申請書）'!O10)","v":""},null,null,null,null,null,null,null,null,null,null,null,null,null,"事務局住所",null,null,"〒　XXX-XXXX",null,null,null,null,null,null,null,null,"　"]
[null,null,null,null,null,null,null,null,null,null,null,{"$f":"IF('①様式1号（申請書）'!L11=\"\",\"\",'①様式1号（申請書）'!L11)","v":""},null,null,null,null,null,null,null,null,null,null,null,null,null,null,null,null,null,null,null,"○○県○○市○○町XXX-X"]
[]
[null,null,null,null,null,null,null,null,"肩書・代表者名",null,null,{"$f":"IF('①様式1号（申請書）'!L13=\"\",\"\",'①様式1号（申請書）'!L13)","v":""},null,null,{"$f":"IF('①様式1号（申請書）'!O13=\"\",\"\",'①様式1号（申請書）'!O13)","v":""},null,null,null,null,null,null,null,null,null,null,null,null,null,"代表者名",null,null,"会長　○○　○○"]
[]
[null,null,null,null,null,null,null,null,"代表者連絡先",null,null,{"$f":"IF('①様式1号（申請書）'!L15=\"\",\"\",'①様式1号（申請書）'!L15)","v":""},null,null,null,null,null,null,null,null,null,null,null,null,null,null,null,null,"代表者連絡先",null,null,"XXX-XXXX-XXXX"]
[]
["八代市大会等運営補助金実績報告書",null,null,null,null,null,null,null,null,null,null,null,null,null,null,null,null,null,null,null,"八代市大会等運営補助金実績報告書"]
[]
["　下記のとおり、大会を実施したので、八代市大会等運営補助金交付要領第６条の規定に基づき、関係書類を添えて報告します。",null,null,null,null,null,null,null,null,null,null,null,null,null,null,null,null,null,null,null,"　下記のとおり、大会を実施したので、八代市大会等運営補助金交付要領第６条の規定に基づき、関係書類を添えて報告します。"]
[]
["記",null,null,null,null,null,null,null,null,null,null,null,null,null,null,null,null,null,null,null,"記"]
[]
["大会・行事\nの名称",{"$f":"IF('①様式1号（申請書）'!B23=\"\",\"\",'①様式1号（申請書）'!B23)","v":""},null,null,null,null,null,null,null,null,null,null,null,null,null,null,null,null,null,null,"合宿の名称","第１回九州○○○選手権大会"]
["書類送付先\n及び連絡先","住　所",null,null,"〒",{"$f":"IF('①様式1号（申請書）'!F24=\"\",\"\",'①様式1号（申請書）'!F24)","v":""},null,"－",{"$f":"IF('①様式1号（申請書）'!I24=\"\",\"\",'①様式1号（申請書）'!I24)","v":""},null,null,null,null,null,null,null,null,null,null,null,"書類送付先\n及び連絡先","住　所",null,null,"〒XXX-XXXX"]
[null,null,null,null,{"$f":"IF('①様式1号（申請書）'!E25=\"\",\"\",'①様式1号（申請書）'!E25)","v":""},null,null,null,null,null,null,null,null,null,null,null,null,null,null,null,null,null,null,null,"○○県○○市○○町XXX-X"]
[null,"担　当",null,null,{"$f":"IF('①様式1号（申請書）'!E26=\"\",\"\",'①様式1号（申請書）'!E26)","v":""},null,null,null,null,null,"電話番号",null,null,{"$f":"IF('①様式1号（申請書）'!N26=\"\",\"\",'①様式1号（申請書）'!N26)","v":""},null,null,null,null,null,null,null,"担　当",null,null,"○○　○○",null,null,null,null,null,"電話番号",null,null,"XXX-XXXX-XXXX"]
["開催期日",null,"令和",null,null,"年",null,"月",null,"日","～","令和",null,null,"年",null,"月",null,"日",null,"開催期日",null,"令和",null,6,"年",10,"月",2,"日","～","令和",null,6,"年",10,"月",3,"日"]
["開催場所",null,null,null,null,null,null,null,null,null,null,null,null,null,null,null,null,null,null,null,"開催場所","トヨオカ地建アリーナ・東陽スポーツセンター"]
["参加者数",null,"県内",null,null,null,"人",null,"県外",null,null,null,"人",null,"合計",null,{"$f":"E29+K29","v":0},null,"人",null,"参加者数",null,"県内",null,180,null,"人",null,"県外",null,150,null,"人",null,"合計",null,330,null,"人"]
["宿泊地",null,null,null,null,null,null,null,null,null,null,null,null,null,null,null,null,null,null,null,"宿泊地","グランドホテル・八代ホテル"]
["宿泊者数","実人数",null,null,null,null,null,"人","延べ宿泊者数",null,null,null,null,null,null,"人（泊）",null,null,null,null,"宿泊者数\n（見込み）","実人数",null,null,180,null,null,"人","延べ宿泊者数",null,null,null,360,null,null,"人（泊）"]
["添付書類",null,"本補助金を計上した大会収支決算見込書",null,null,null,null,null,null,null,null,null,null,null,null,null,null,null,null,null,"添付書類",null,"本補助金を計上した合宿収支決算書"]
[null,null,"大会風景の写真を一枚",null,null,null,null,null,null,null,null,null,null,null,null,null,null,null,null,null,null,null,"合宿風景の写真を一枚"]
[null,null,"大会関係者の宿泊一覧表（様式第３号）",null,null,null,null,null,null,null,null,null,null,null,null,null,null,null,null,null,null,null,"合宿関係者の宿泊一覧表（様式第３号）"]
[null,null,"宿泊証明書",null,null,null,null,null,null,null,null,null,null,null,null,null,null,null,null,null,null,null,"宿泊証明書"]
[null,null,"参加者名簿（実績報告の人数と合致する書類）",null,null,null,null,null,null,null,null,null,null,null,null,null,null,null,null,null,null,null,"宿泊者名簿"]
["備考",null,null,null,null,null,null,null,null,null,null,null,null,null,null,null,null,null,null,null,"備考"]

{"sheet":"⑤様式3号（宿泊一覧表）","index":5,"n_rows":49,"n_cols":12,"rows_kept":49,"cut":false,"hidden":false,"merged":[[4,0,4,4],[4,7,4,11],[7,1,7,4],[7,8,7,11],[10,0,11,0],[10,1,11,1],[10,2,10,3],[10,4,11,4],[10,7,11,7],[10,8,11,8],[22,10,24,10],[22,11,24,11],[48,0,48,4],[48,7,48,11],[10,9,10,10],[10,11,11,11],[22,0,24,0],[22,1,24,1],[22,2,24,2],[22,3,24,3],[22,4,24,4],[22,7,24,7],[22,8,24,8],[22,9,24,9]]}
[]
[]
["様式第３号（第６条関係）",null,null,null,null,null,null,"様式第３号（第６条関係）"]
[]
["宿　泊　一　覧　表",null,null,null,null,null,null,"宿　泊　一　覧　表"]
[" ",null,null,null,null,null,null," "]
[]
[null,{"$f":"\"大会・行事名：　\"&IF('①様式1号（申請書）'!B23=\"\",\"\",'①様式1号（申請書）'!B23)","v":"大会・行事名：　"},null,null,null,null,null,null,"大会・行事名　：　第１回九州○○○選手権大会"]
[]
[]
[null,"宿泊ホテル及び旅館名","宿泊者数",null,"備　　考",null,null,null,"宿泊ホテル及び旅館名","宿泊者数",null,"備　　考"]
[null,null,"実人数","延べ宿泊者数",null,null,null,null,null,"実人数","延べ宿泊者数"]
[1,null,null,null,null,null,null,1,"○○ホテル",30,60]
[2,null,null,null,null,null,null,2,"○○旅館",24,48]
[3,null,null,null,null,null,null,3]
[4,null,null,null,null,null,null,4]
[5,null,null,null,null,null,null,5]
[6,null,null,null,null,null,null,6]
[7,null,null,null,null,null,null,7]
[8,null,null,null,null,null,null,8]
[9,null,null,null,null,null,null,9]
[10,null,null,null,null,null,null,10]
["計",null,{"$f":"SUM(C13:C22)","v":0},{"$f":"SUM(D13:D22)","v":0},null,null,null,"計",null,{"$f":"SUM(J13:J22)","v":54},{"$f":"SUM(K13:K22)","v":108}]
[]
[]
[]
[" ",null,null,null,null,null,null," "]
[]
[" ",null,null,null,null,null,null," "]
[]
[" ",null,null,null,null,null,null," "]
[]
[" ",null,null,null,null,null,null," "]
[]
[" ",null,null,null,null,null,null," "]
[]
[" ",null,null,null,null,null,null," "]
[]
[]
[]
[" ",null,null,null,null,null,null," "]
[]
[" ",null,null,null,null,null,null," "]
[]
[" ",null,null,null,null,null,null," "]
[]
[" ",null,null,null,null,null,null," "]
[]
[" ",null,null,null,null,null,null," "]

{"sheet":"⑥宿泊証明書 ","index":6,"n_rows":44,"n_cols":8,"rows_kept":44,"cut":false,"hidden":false,"merged":[[5,0,5,1],[5,2,5,5],[1,0,1,7],[3,0,3,1],[3,2,3,7],[4,0,4,1],[4,2,4,7],[43,0,43,1],[43,3,43,5],[5,6,5,7],[40,5,40,7],[36,0,36,1],[36,2,36,7],[37,0,37,7],[42,0,42,1],[42,2,42,7],[6,0,6,1],[6,2,6,7],[31,0,32,7],[34,0,34,1],[34,2,34,7],[35,0,35,1],[35,2,35,7]]}
[]
["宿　泊　証　明　書"]
[]
["合   宿 　名：",null,{"$f":"IF('①様式1号（申請書）'!B23=\"\",\"\",'①様式1号（申請書）'!B23)","v":""}]
["申 請 者 名：",null,{"$f":"IF('①様式1号（申請書）'!L8=\"\",\"\",'①様式1号（申請書）'!L8)","v":""}]
["チ ー ム 名 ：",null,null,null,null,null,"県内 　・　 県外"]
["宿泊施設名："]
[]
["Ｎｏ","氏　名","種別","延べ宿泊数","Ｎｏ","氏名","種別","延べ宿泊数"]
["記入例","高田　太郎","選手・チームスタッフ・保護者",4]
[1,null,"選手・チームスタッフ・保護者",null,21,null,"選手・チームスタッフ・保護者"]
[2,null,"選手・チームスタッフ・保護者",null,22,null,"選手・チームスタッフ・保護者"]
[3,null,"選手・チームスタッフ・保護者",null,23,null,"選手・チームスタッフ・保護者"]
[4,null,"選手・チームスタッフ・保護者",null,24,null,"選手・チームスタッフ・保護者"]
[5,null,"選手・チームスタッフ・保護者",null,25,null,"選手・チームスタッフ・保護者"]
[6,null,"選手・チームスタッフ・保護者",null,26,null,"選手・チームスタッフ・保護者"]
[7,null,"選手・チームスタッフ・保護者",null,27,null,"選手・チームスタッフ・保護者"]
[8,null,"選手・チームスタッフ・保護者",null,28,null,"選手・チームスタッフ・保護者"]
[9,null,"選手・チームスタッフ・保護者",null,29,null,"選手・チームスタッフ・保護者"]
[10,null,"選手・チームスタッフ・保護者",null,30,null,"選手・チームスタッフ・保護者"]
[11,null,"選手・チームスタッフ・保護者",null,31,null,"選手・チームスタッフ・保護者"]
[12,null,"選手・チームスタッフ・保護者",null,32,null,"選手・チームスタッフ・保護者"]
[13,null,"選手・チームスタッフ・保護者",null,33,null,"選手・チームスタッフ・保護者"]
[14,null,"選手・チームスタッフ・保護者",null,34,null,"選手・チームスタッフ・保護者"]
[15,null,"選手・チームスタッフ・保護者",null,35,null,"選手・チームスタッフ・保護者"]
[16,null,"選手・チームスタッフ・保護者",null,36,null,"選手・チームスタッフ・保護者"]
[17,null,"選手・チームスタッフ・保護者",null,37,null,"選手・チームスタッフ・保護者"]
[18,null,"選手・チームスタッフ・保護者",null,38,null,"選手・チームスタッフ・保護者"]
[19,null,"選手・チームスタッフ・保護者",null,39,null,"選手・チームスタッフ・保護者"]
[20,null,"選手・チームスタッフ・保護者",null,40,null,"選手・チームスタッフ・保護者"]
[]
["申請者は上記に記入し、または、同じ要件を満たすリストを付して\n以下、宿泊施設にて(証明・捺印)を受けてください。"]
[]
[]
["宿 泊 期 間",null,"チェックイン日　令和　　　　年　　　　月　　　　日　～　チェックアウト日　令和　　　　年　　　　月　　　　日"]
["宿泊者実人数",null,"　　　　　　　　　　　　　　　　　　　　　　　　　　　　　　　　　　　　　　　　　　　　名"]
["のべ宿泊者数",null,"　　　　　　　　　　　　　　　　　　　　　　　　　　　　　　　　　　　　　　　　　　　　名"]
[]
["上記のとおり、当施設に宿泊したことを証明します。"]
[]
[null,null,null,null,null,"令和　　　年　　　　月　　　　日"]
[]
["所在地・名称"]
["代　表　者　",null,null,null,null,null,null,"㊞"]

{"sheet":"⑦決算書","index":7,"n_rows":20,"n_cols":16,"rows_kept":20,"cut":false,"hidden":false,"merged":[[5,1,5,5],[5,10,5,14],[3,11,3,15],[1,1,1,6],[1,10,1,15],[2,2,2,6],[2,11,2,15],[3,2,3,6],[6,1,6,5],[6,10,6,14],[7,1,7,5],[7,10,7,14],[8,1,8,5],[8,10,8,14],[9,1,9,5],[9,10,9,14],[10,1,10,5],[10,10,10,14],[13,1,13,5],[13,10,13,14],[14,1,14,5],[14,10,14,14],[15,1,15,5],[15,10,15,14],[16,1,16,5],[16,10,16,14],[17,1,17,5],[17,10,17,14],[18,1,18,5],[18,10,18,14],[19,1,19,5],[19,10,19,14]]}
[]
[null,"大会決算書",null,null,null,null,null,null,null,null,"大会決算書"]
[null,"大会・行事名：",{"$f":"IF('①様式1号（申請書）'!B23=\"\",\"\",'①様式1号（申請書）'!B23)","v":""},null,null,null,null,null,null,null,"大会・行事名：","第１回九州○○○選手権大会"]
[null,"団体名：",{"$f":"IF('①様式1号（申請書）'!L8=\"\",\"\",'①様式1号（申請書）'!L8)","v":""},null,null,null,null,null,null,null,"団体名：","○○地区○○○協会"]
[null,"【収入】",null,null,null,null,null,null,null,null,"【収入】"]
[null,"項目",null,null,null,null,"金額",null,null,null,"項目",null,null,null,null,"金額"]
[null,"八代市大会等運営補助金",null,null,null,null,null,null,null,null,"八代市大会等運営補助金",null,null,null,null,170000]
[null,null,null,null,null,null,null,null,null,null,"参加費",null,null,null,null,50000]
[]
[]
[null,"計",null,null,null,null,{"$f":"SUM(G7:G10)","v":0},null,null,null,"計",null,null,null,null,{"$f":"SUM(P7:P10)","v":220000}]
[]
[null,"【支出】",null,null,null,null,null,null,null,null,"【支出】"]
[null,"項目",null,null,null,null,"金額",null,null,null,"項目",null,null,null,null,"金額"]
[null,null,null,null,null,null,null,null,null,null,"宿泊費",null,null,null,null,150000]
[null,null,null,null,null,null,null,null,null,null,"交通費",null,null,null,null,10000]
[null,null,null,null,null,null,null,null,null,null,"会場使用料",null,null,null,null,40000]
[null,null,null,null,null,null,null,null,null,null,"弁当代",null,null,null,null,20000]
[]
[null,"計",null,null,null,null,{"$f":"SUM(G15:G19)","v":0},null,null,null,"計",null,null,null,null,{"$f":"SUM(P15:P19)","v":220000}]